[Event "57th Biel Festival MTO 2024"]
[White "Nesterov,Arseniy"]
[Black "Holzke,Frank"]
[Site "Biel"]
[Round "6.6"]
[Annotator "TA"]
[Result "1-0"]
[Date "2024.07.20"]
[WhiteElo "2609"]
[BlackElo "2450"]
[PlyCount "105"]
[TimeControl "60"]

{[%evp 24,105,0,10,5,0,0,0,-11,-8,0,0,0,0,0,0,6,0,0,0,0,0,0,0,66,66,99,99,79,66,33,16,83,65,70,82,79,52,47,50,48,50,52,52,48,49,49,49,98,98,91,87,101,93,245,125,144,189,40,83,68,109,115,40,40,40,40,40,40,40,40,40,40,39,39,39,39,39,39,8,8,8,8,8]} 1. d4 {[%emt 0:0:13]} Nf6 {[%emt 0:4:6]} 2. c4 {[%emt 0:0:5]} g6 {[%emt 0:0:15]} 3. Nc3 {[%emt 0:0:12]} d5 {[%emt 0:0:17]} 4. cxd5 {[%emt 0:0:6]} Nxd5 {[%emt 0:0:3]} 5. e4 {[%emt 0:0:4]} Nxc3 {[%emt 0:0:13]} 6. bxc3 {[%emt 0:0:5]} Bg7 {[%emt 0:0:14]} 7. Bc4 {[%emt 0:0:6]} c5 {[%emt 0:0:20]} 8. Ne2 {[%emt 0:0:8]} Nc6 {[%emt 0:0:15]} 9. Be3 {[%emt 0:0:7]} O-O {[%emt 0:0:13]} 10. h4 {[%emt 0:0:24]} cxd4 {[%emt 0:1:8]} 11. cxd4 {[%emt 0:0:4]} Qa5+ {[%emt 0:0:11]} 12. Kf1 {[%emt 0:0:6]} Qa3 {[%emt 0:0:20] D87: Exchange Grünfeld: Classical Line: Variations without ...cxd4.} 13. h5 {[%emt 0:1:47]} Rd8 {[%emt 0:0:21]} 14. Rb1 {[%emt 0:18:18]} Bg4 {[%emt 0:8:39]} 15. hxg6 {[%emt 0:1:46]} hxg6 {[%emt 0:0:17]} 16. d5 {[%emt 0:6:34]} Rac8 $146 {[%emt 0:8:19]} ({Predecessor:} 16... Ne5 17. Bb3 Rac8 18. f3 Nxf3 19. gxf3 Bxf3 20. Rh4 Rc3 21. Bd4 Bxe2+ 22. Kxe2 Qa6+ {0-1 Sirosh,I (2400)-Gallo Garcia,K (2328) Titled Tuesday intern op 12th Jan blitz 2021 (7)} )17. Bb3 {[%emt 0:8:50]} Na5 {[%emt 0:8:33]} 18. f3 {[%emt 0:2:5]} Bd7 $1 {[%emt 0:0:47]} 19. Qd2 {[%emt 0:30:1]} Nxb3 {[%emt 0:9:52]} 20. Rxb3 {[%emt 0:1:23]} Qa6 {[%emt 0:0:29]} 21. Kf2 {[%emt 0:11:2]} Ba4 {[%emt 0:1:17]} 22. Rc3 {[%emt 0:0:51]} Rxc3 {[%emt 0:16:6]} 23. Nxc3 {[%emt 0:0:13]} Qc4 {[%emt 0:0:20]} ({Black should try} 23... Rc8 $11 24. Bd4 f6 )24. Rc1 $14 {[%emt 0:1:58]} f5 {[%emt 0:10:54]} 25. Ne2 {[%emt 0:1:39]} (25. Bxa7 $6 fxe4 26. Nxe4 Qxd5 27. Qxd5+ Rxd5 $11 )Qa6 {[%emt 0:6:35]} 26. exf5 {[%emt 0:6:2]} gxf5 {[%emt 0:0:0]} 27. Nf4 {[%emt 0:1:3]} Qb5 {[%emt 0:0:53]} (27... Bd7 $1 $11 )28. Rc5 {[%emt 0:11:47]} Qb2 $1 {[%emt 0:0:30]} 29. Qxb2 $1 {[%emt 0:0:2]} Bxb2 {[%emt 0:0:10]} 30. Ne6 {[%emt 0:2:44]} Rd6 $1 {[%emt 0:6:33]} 31. Rc8+ {[%emt 0:0:6]} Kf7 {[%emt 0:5:27]} 32. Rf8+ {[%emt 0:1:39]} (32. Bxa7 Rxd5 33. Nd8+ Kf6 $11 )Kg6 {[%emt 0:0:12]} 33. Ra8 {[%emt 0:1:30]} Kf7 {[%emt 0:7:18]} 34. Rxa7 {[%emt 0:2:12]} b5 $1 {[%emt 0:0:47]} 35. Bg5 {[%emt 0:0:38]} Kg6 {[%emt 0:6:23]} (35... Rxd5 $14 36. Rxe7+ Kg8 )36. Rxe7 $16 {[%emt 0:2:2]} ({Inferior is} 36. Bxe7 Rxe6 (36... Rxd5 $2 {loses.} 37. Nf4+ Kg7 38. Bc5+ Kg8 39. Nxd5 $18 )37. Rxa4 (37. dxe6 $2 {is the wrong capture.} Bd4+ 38. Ke2 Bxa7 $19 )Rxe7 $19 )Bf6 {[%emt 0:2:36]} 37. Bxf6 {[%emt 0:0:31]} Kxf6 {[%emt 0:0:8]} 38. Re8 {[%emt 0:0:28]} b4 $2 {[%emt 0:6:11] [#]} (38... Rxd5 $16 39. Nf4 Rc5 )39. Rd8 {[%emt 0:0:33]} (39. Nc7 $1 $18 )Ke5 $16 {[%emt 0:1:29]} 40. Rxd6 {[%emt 0:0:24]} Kxd6 {[%emt 0:0:8]} 41. Nf4 {[%emt 0:50:20]} b3 {[%emt 0:20:10]} 42. axb3 {[%emt 0:0:0]} Bxb3 {[%emt 0:0:0] [#]} 43. Ke3 {[%emt 0:0:0]} (43. Kg3 $1 $16 Ke5 44. d6 Kxd6 45. Kh2 )Ke5 $1 $14 {[%emt 0:0:20]} 44. Ng6+ {[%emt 0:0:0]} Kxd5 {[%emt 0:4:37]} 45. Kf4 {[%emt 0:0:0]} Ke6 {[%emt 0:0:30]} 46. Nh4 {[%emt 0:0:0]} Bc2 {[%emt 0:0:19]} 47. Kg5 {[%emt 0:0:0]} Bd3 {[%emt 0:2:28]} 48. f4 {[%emt 0:0:0]} Be4 {[%emt 0:5:10]} 49. g3 {[%emt 0:0:0]} Bd3 $1 {[%emt 0:1:59]} 50. Nf3 {[%emt 0:0:6]} Kd5 $1 {[%emt 0:0:2]} 51. Kf6 {[%emt 0:0:1]} (51. Kg6 $5 )Ke4 {[%emt 0:0:1]} 52. Nh4 {[%emt 0:0:2]} Bf1 $1 {[%emt 0:0:12]} 53. Kg5 {[%emt 0:0:22]} (53. Nxf5 $5 Kf3 $8 54. Kg6 $11 )1-0

[Event "57th Biel Festival MTO 2024"]
[White "Ganguly,Surya Shekhar"]
[Black "Gan-Erdene,Sugar"]
[Site "Biel"]
[Round "6.7"]
[Annotator "TA"]
[Result "0-1"]
[Date "2024.07.20"]
[WhiteElo "2575"]
[BlackElo "2424"]
[PlyCount "68"]
[TimeControl "60"]

{[%evp 9,68,7,18,-20,-24,-90,-80,-73,-79,-81,-79,-64,-73,-249,-245,-231,-149,-162,-108,-217,-215,-217,-222,-195,-178,-175,-174,-180,-177,-181,-187,-294,-286,-277,-276,-339,-277,-276,-272,-307,-287,-284,-279,-293,-265,-286,-270,-286,-277,-268,-270,-268,-262,-415,-418,-716,-712,-752,-758,-806,-774]} 1. c4 {[%emt 0:0:11]} c5 {[%emt 0:0:39]} 2. Nf3 {[%emt 0:0:12]} Nc6 {[%emt 0:0:17]} 3. d4 {[%emt 0:0:31]} cxd4 {[%emt 0:0:6]} 4. Nxd4 {[%emt 0:0:4]} Nf6 {[%emt 0:2:58][%cal Bg8f6,Bf6g4,Bg4e3][%mdl 32]} 5. Nc3 {[%emt 0:0:6]} Qb6 {[%emt 0:2:48]} 6. Be3 {[%emt 0:25:17]} Ng4 $1 {[%emt 0:22:46]} 7. Nd5 {[%emt 0:0:43]} (7. Nc2 $11 Nxe3 (7... Qxb2 8. Bd2 $15 )8. Nxe3 )Nxe3 $1 $17 {[%emt 0:0:5]} (7... Qxb2 8. Rb1 Nxe3 (8... Qxa2 9. Nxc6 bxc6 10. Nc7+ Kd8 11. Nxa8 $16 )9. fxe3 $16 (9. Rxb2 $2 Nxd1 10. Kxd1 Kd8 $19 ))8. Nxb6 {[%emt 0:0:32] Black is better.} Nxd1 {[%emt 0:0:4]} 9. Nxa8 {[%emt 0:0:6]} Nxb2 {[%emt 0:8:23]} 10. e3 {[%emt 0:4:34]} e5 {[%emt 0:8:44][%mdl 1024] Black has compensation.} 11. Nc2 {[%emt 0:5:0]} (11. Nb5 $17 )Kd8 $19 {[%emt 0:1:27]} 12. a4 {[%emt 0:2:11]} e4 {[%emt 0:17:29]} 13. a5 {[%emt 0:3:41] [#]} Nd3+ $1 {[%emt 0:0:21]} 14. Kd2 {[%emt 0:4:1]} (14. Bxd3 $17 {might work better.} exd3 15. Nd4 )Nxf2 {[%emt 0:1:4]} 15. Rg1 {[%emt 0:0:1]} Ng4 {[%emt 0:7:55]} 16. Be2 {[%emt 0:1:1]} Nge5 {[%emt 0:0:5]} 17. Rgb1 {[%emt 0:3:4]} Bc5 {[%emt 0:3:29]} 18. Kc3 {[%emt 0:0:16]} d6 {[%emt 0:0:28]} 19. Nd4 {[%emt 0:0:7]} Re8 {[%emt 0:2:10]} 20. Nb5 {[%emt 0:6:22]} (20. Rb5 {is a better defense.} )Re6 {[%emt 0:2:3][%cal Oe6g6]} (20... Bxe3 21. Nac7 Rf8 22. a6 $19 )21. Nac7 {[%emt 0:12:8]} Rg6 {[%emt 0:0:42]} 22. a6 {[%emt 0:0:11]} bxa6 {[%emt 0:1:41]} 23. Nxa6 {[%emt 0:0:3]} Bxe3 {[%emt 0:2:15] A strong pair of Bishops.} (23... Rxg2 24. Bf1 Rxh2 25. Nxc5 dxc5 26. Rd1+ Ke7 27. Rd5 $15 )24. Rd1 {[%emt 0:0:3]} Bxa6 {[%emt 0:0:41]} 25. Rxa6 {[%emt 0:1:0]} Bc5 {[%emt 0:0:29]} 26. g4 {[%emt 0:1:28]} Kd7 {[%emt 0:0:58][%cal Og6h6] Threatens to win with ...Rh6!} 27. h4 {[%emt 0:0:51]} Rf6 {[%emt 0:1:2] ...Rf2 is the strong threat.} 28. Ra2 {[%emt 0:2:48]} h6 {[%emt 0:3:19]} (28... Rf4 29. Nxd6 Ke7 (29... Bxd6 30. c5 $15 )(29... Bb4+ 30. Kb3 $15 )30. Nf5+ Kf8 31. Rb2 $11 )29. g5 {[%emt 0:0:48]} hxg5 {[%emt 0:0:4]} 30. hxg5 {[%emt 0:0:4]} Rg6 {[%emt 0:0:16]} 31. Bf1 {[%emt 0:0:20]} (31. Kb3 {was the only defense.} )Rxg5 {[%emt 0:0:53]} 32. Nxd6 {[%emt 0:2:39]} (32. Rg2 $142 Rxg2 (32... Ng4 $2 33. Be2 $19 )33. Bxg2 )Rg3+ {[%emt 0:0:48] Black is clearly winning.} 33. Kb2 {[%emt 0:0:2]} Bxd6 {[%emt 0:0:29]} 34. c5 {[%emt 0:0:14]} Nd3+ {[%emt 0:0:12] Weighted Error Value: White=0.52/Black=0.11 (very precise) .  Loses game:     	White=1     	---        Mistake:       	White=5     	---        Inaccurate:     	---       	Black=1      OK:         	White=8     	Black=16     Best:        	---       	Black=1      Strong:       	---       	Black=3} 0-1

[Event "57th Biel Festival MTO 2024"]
[White "Gavrilescu,David"]
[Black "Juksta,Karolis"]
[Site "Biel"]
[Round "6.8"]
[Annotator "TA"]
[Result "1-0"]
[Date "2024.07.20"]
[WhiteElo "2538"]
[BlackElo "2400"]
[PlyCount "83"]
[TimeControl "60"]

{[%evp 9,83,4,12,19,18,12,16,18,17,6,9,7,21,15,22,0,10,0,-3,-29,11,8,13,-18,8,-14,0,0,58,54,94,111,122,120,130,139,147,133,133,143,138,133,205,196,239,243,227,236,254,242,245,245,241,233,316,311,334,322,379,374,381,375,381,363,594,533,622,621,660,594,562,555,560,554,563,472]} 1. e4 {[%emt 0:0:3]} e5 {[%emt 0:1:38]} 2. Nf3 {[%emt 0:0:40]} Nf6 {[%emt 0:0:9]} 3. d4 {[%emt 0:0:48]} Nxe4 {[%emt 0:0:16]} 4. dxe5 {[%emt 0:0:39]} d5 {[%emt 0:0:22]} 5. Nbd2 {[%emt 0:0:26]} Nxd2 {[%emt 0:0:8]} 6. Bxd2 {[%emt 0:0:22]} Be7 {[%emt 0:3:14]} 7. Bd3 {[%emt 0:3:54]} c5 {[%emt 0:12:38]} 8. c3 {[%emt 0:3:0] Die Stellung ist ausgeglichen.} Nc6 {[%emt 0:0:24]} 9. h3 {[%emt 0:3:1] Gegen Bg4 gerichtet.} Be6 {[%emt 0:7:47]} 10. Qe2 {[%emt 0:5:43]} h6 {[%emt 0:3:45]} 11. Rd1 {[%emt 0:7:21]} Qd7 {[%emt 0:3:3]} 12. a3 {[%emt 0:6:5]} O-O {[%emt 0:9:47]} 13. O-O {[%emt 0:9:28]} Bf5 {[%emt 0:21:7]} 14. c4 {[%emt 0:6:39] [#] Und jetzt cxd5 wäre schön.} d4 {[%emt 0:4:58]} 15. Ne1 {[%emt 0:10:11][%cal Bf3e1,Be1d3,Bd3c5][%mdl 32]} f6 {[%emt 0:11:36]} 16. f4 {[%emt 0:10:29]} Rae8 {[%emt 0:9:51][%cal Oe7d6]} 17. Qh5 {[%emt 0:4:46]} Bxd3 {[%emt 0:13:28]} 18. Nxd3 {[%emt 0:0:49]} f5 {[%emt 0:1:21]} (18... fxe5 $11 19. fxe5 Qe6 )19. Qf3 $14 {[%emt 0:5:56]} Qe6 {[%emt 0:2:45] Weiß verwandelt nun seinen Vorteil.} 20. Qd5 {[%emt 0:2:42]} Kf7 {[%emt 0:0:10]} 21. Nxc5 {[%emt 0:2:24] Weiß steht aktiver.} Qxd5 {[%emt 0:0:8]} 22. cxd5 {[%emt 0:0:4]} Bxc5 {[%emt 0:1:52]} 23. dxc6 {[%emt 0:1:4]} bxc6 {[%emt 0:0:42]} 24. Rc1 {[%emt 0:0:6]} Bb6 {[%emt 0:0:32]} 25. Rxc6 {[%emt 0:0:52]} d3+ {[%emt 0:0:48]} (25... Re6 $16 {war einen Versuch wert.} 26. Rcc1 Kg8 )26. Kh2 $18 {[%emt 0:0:15]} Rc8 {[%emt 0:0:11]} 27. Rfc1 {[%emt 0:0:52]} Rxc6 {[%emt 0:0:19]} 28. Rxc6 {[%emt 0:0:2][%mdl 4096] Endspiel. KRB-KRB} Rd8 {[%emt 0:0:13]} 29. Kg3 {[%emt 0:1:4]} Rd4 {[%emt 0:1:13]} 30. Kf3 {[%emt 0:1:27]} Re4 {[%emt 0:0:30]} 31. Rd6 {[%emt 0:4:26]} Bd4 {[%emt 0:0:23]} 32. g4 {[%emt 0:4:29]} g6 {[%emt 0:0:24][%cal Bg7g6,Bg6f5][%mdl 32]} 33. b4 {[%emt 0:1:40]} Re2 {[%emt 0:0:46]} 34. Rxd4 {[%emt 0:0:25]} Rxd2 {[%emt 0:0:2]} 35. gxf5 {[%emt 0:2:19]} gxf5 {[%emt 0:0:2] KR-KR} 36. Rd7+ {[%emt 0:1:45]} Kg6 $2 {[%emt 0:1:26] [#]} (36... Ke8 37. Rd6 (37. Rxa7 Rh2 $18 )Rh2 )37. Rxa7 {[%emt 0:2:14] Weiß steht klar auf Gewinn.} Rh2 {[%emt 0:0:21]} 38. Kg3 {[%emt 0:0:58]} (38. Ke3 d2 39. Rd7 Rxh3+ 40. Kxd2 Rxa3 41. Rd6+ Kf7 42. Rf6+ (42. Rxh6 Rb3 $16 )Ke8 $18 )Ra2 {[%emt 0:0:36]} 39. Kh4 {[%emt 0:0:41]} Rf2 {[%emt 0:0:32]} 40. Ra6+ {[%emt 0:0:7]} Kg7 {[%emt 0:0:23]} 41. Rd6 {[%emt 0:52:20]} Rxf4+ {[%emt 0:4:23]} 42. Kg3 {[%emt 0:0:0] Gewichteter Fehlerwert: Weiß=0.07 (makellos) /Schwarz=0.25 (präzise) .  Fehler:       	---       	Schwarz=3     Ungenau:       	Weiß=2     	Schwarz=4     OK:         	Weiß=20    	Schwarz=11    Bester:       	Weiß=2     	Schwarz=1} 1-0

[Event "57th Biel Festival MTO 2024"]
[White "Petkidis,Anthony"]
[Black "Kobo,Ori"]
[Site "Biel"]
[Round "6.9"]
[Annotator "TA"]
[Result "1-0"]
[Date "2024.07.20"]
[WhiteElo "2427"]
[BlackElo "2529"]
[PlyCount "120"]
[TimeControl "60"]

1. e4 {[%emt 0:0:12]} e6 {[%emt 0:0:15]} 2. d4 {[%emt 0:0:14]} d5 {[%emt 0:0:6]} 3. e5 {[%emt 0:0:15]} c5 {[%emt 0:0:13]} 4. c3 {[%emt 0:0:7]} Qa5 {[%emt 0:0:23]} 5. a3 {[%emt 0:2:44]} Bd7 {[%emt 0:0:13]} 6. Nf3 {[%emt 0:2:47] C02: French: Advance Variation.} Nc6 {[%emt 0:1:12]} 7. dxc5 {[%emt 0:10:14]} Qc7 {[%emt 0:0:13]} 8. Bf4 {[%emt 0:0:5]} Bxc5 {[%emt 0:0:16]} 9. b4 {[%emt 0:1:3]} Be7 $146 {[%emt 0:2:17]} ({Predecessor:} 9... Bb6 10. Bd3 Nge7 11. Qe2 Ng6 12. Bg3 O-O 13. O-O Rac8 14. Nbd2 Qb8 15. Rfe1 Bc7 {0-1 Novikov,M (2435)-Shubin,K (2440) RUS-ch Rapid 2023 (11)} )10. Bd3 {[%emt 0:2:58]} g5 {[%emt 0:0:17]} 11. Nxg5 {[%emt 0:9:48]} Nxe5 {[%emt 0:0:11]} 12. O-O {[%emt 0:0:46]} Nf6 {[%emt 0:0:9]} 13. Nf3 {[%emt 0:10:23]} Nfg4 {[%emt 0:0:11]} 14. Nxe5 {[%emt 0:22:13]} Nxe5 {[%emt 0:0:14]} 15. Re1 {[%emt 0:0:37]} Bd6 {[%emt 0:4:40]} 16. Bf1 {[%emt 0:2:20]} Nf3+ {[%emt 0:19:9]} 17. Qxf3 {[%emt 0:0:9]} Bxf4 {[%emt 0:0:8]} 18. g3 {[%emt 0:1:29]} Be5 {[%emt 0:12:59]} 19. Qh5 {[%emt 0:0:55]} Bg7 {[%emt 0:0:28]} 20. Qxd5 {[%emt 0:2:32]} O-O-O {[%emt 0:7:25]} 21. Qh5 {[%emt 0:0:12]} Ba4 {[%emt 0:14:57]} 22. Ra2 {[%emt 0:5:39]} Kb8 {[%emt 0:20:36]} 23. Rd2 {[%emt 0:15:39]} Rxd2 {[%emt 0:1:43]} 24. Nxd2 {[%emt 0:0:2]} Qxc3 {[%emt 0:4:32]} 25. Nf3 {[%emt 0:3:31]} Rc8 {[%emt 0:5:56]} 26. Re3 {[%emt 0:3:5]} (26. Qxf7 $2 Rf8 (26... Qxa3 $2 27. Qxg7 Ka8 28. Qxh7 $18 )27. Qxe6 Qxf3 $19 (27... Rxf3 $2 28. Qd6+ Qc7 29. Qxc7+ Kxc7 30. Re7+ Kb6 31. Rxg7 $18 ))(26. Qxh7 $2 Qxf3 27. Bg2 (27. Qxg7 Bc6 28. Qe5+ Ka8 )Qg4 $19 (27... Qxa3 28. Qxg7 Qxb4 29. Ra1 $16 )(27... Qc3 $2 28. Qe4 $19 ))Qf6 {[%emt 0:1:18]} 27. Qa5 {[%emt 0:3:25]} Be8 {[%emt 0:2:46]} 28. b5 {[%emt 0:5:35]} Bf8 {[%emt 0:1:38]} 29. Kg2 {[%emt 0:0:59]} Bc5 {[%emt 0:1:37]} 30. Rb3 {[%emt 0:0:12]} Qe7 {[%emt 0:3:28]} 31. Bd3 {[%emt 0:2:40]} f6 {[%emt 0:0:14]} 32. a4 {[%emt 0:0:17]} Bf7 {[%emt 0:3:22]} 33. Qe1 {[%emt 0:0:38]} h5 {[%emt 0:0:53]} 34. a5 {[%emt 0:0:15]} Qd7 {[%emt 0:0:59]} 35. Be4 {[%emt 0:0:41]} e5 {[%emt 0:2:6]} 36. Rb1 {[%emt 0:0:21]} Ba2 {[%emt 0:0:49]} 37. Rb2 {[%emt 0:1:0]} Be6 {[%emt 0:0:8]} 38. Qe2 {[%emt 0:1:50]} (38. a6 $5 )Bh3+ {[%emt 0:0:28]} 39. Kh1 $1 {[%emt 0:0:18]} Ba3 {[%emt 0:0:58]} (39... Qg4 $5 40. Rc2 Bf1 41. Qxf1 Qxe4 $15 )40. Rc2 {[%emt 0:1:30]} Rxc2 {[%emt 0:0:29]} 41. Bxc2 {[%emt 0:50:35]} Bg4 {[%emt 0:7:9]} 42. a6 {[%emt 0:0:0]} Qc7 {[%emt 0:15:8]} 43. Qe4 {[%emt 0:0:0]} Bc5 {[%emt 0:11:31]} 44. Kg2 {[%emt 0:0:0]} bxa6 {[%emt 0:2:28]} 45. bxa6 {[%emt 0:0:0]} Bc8 {[%emt 0:2:40]} 46. Bd3 {[%emt 0:0:0]} Bb6 {[%emt 0:1:12]} 47. Qe2 {[%emt 0:0:0]} Bg4 {[%emt 0:2:59]} 48. h3 {[%emt 0:0:0]} Bc8 {[%emt 0:2:19]} 49. Nh4 {[%emt 0:0:0]} (49. h4 {simplifies} Bg4 50. Qc2 Qxc2 51. Bxc2 Kc7 52. Nd2 )Qc5 {[%emt 0:3:31]} 50. Qf3 {[%emt 0:0:0]} Qa3 {[%emt 0:1:33]} (50... e4 $11 51. Bxe4 Bxa6 52. Qxf6 Bb7 53. Bxb7 Kxb7 )51. Qe2 {[%emt 0:1:5]} (51. Nf5 $1 $16 )Bd7 {[%emt 0:1:25]} 52. Qf3 {[%emt 0:0:52]} ({White should play} 52. Qe4 $11 Bc8 53. Qf3 )Bc8 $1 $16 {[%emt 0:0:14] [#]} 53. Qe2 {[%emt 0:0:7]} (53. Nf5 $1 $16 )Qc3 {[%emt 0:1:17]} ({Black should try} 53... Qc5 $11 )54. Nf5 {[%emt 0:0:37]} (54. Bf5 $1 $14 )Bxf5 {[%emt 0:3:29]} (54... Qc6+ $1 $11 {keeps the balance.} 55. Qf3 Qxf3+ 56. Kxf3 Be6 )55. Bxf5 $16 {[%emt 0:0:3]} h4 {[%emt 0:0:37]} (55... Qd4 $16 {was necessary.} 56. h4 (56. Qxh5 $2 {gets mated.} Qxf2+ 57. Kh1 Qg1# )Kc7 )56. gxh4 {[%emt 0:2:51]} Qd4 $2 {[%emt 0:0:27]} (56... Kc7 57. h5 Qc1 58. Qc2+ Qxc2 59. Bxc2 e4 60. Bxe4 Kd8 )57. h5 {[%emt 0:0:10]} Qf4 $2 {[%emt 0:0:32] [#]} (57... Qd5+ $18 58. Qf3 e4 59. Qxe4 (59. Bxe4 Qg5+ 60. Qg4 Kc7 $18 )Qxe4+ 60. Bxe4 f5 )58. Qc2 $1 {[%emt 0:0:37]} Bc5 {[%emt 0:0:25]} 59. Qxc5 {[%emt 0:2:16]} Qxf5 {[%emt 0:0:3]} 60. Qc6 {[%emt 0:0:19]} Qg5+ {[%emt 0:1:1]} 1-0

[Event "57th Biel Festival MTO 2024"]
[White "Chinguun,Sumiya"]
[Black "Xiao,Tong"]
[Site "Biel"]
[Round "6.10"]
[Annotator "TA"]
[Result "0-1"]
[Date "2024.07.20"]
[WhiteElo "2348"]
[BlackElo "2518"]
[PlyCount "110"]
[TimeControl "60"]

{[%evp 14,110,61,32,45,38,35,34,41,11,10,0,0,0,0,-39,6,0,0,0,0,0,0,-7,0,0,9,-33,0,0,0,0,0,0,0,0,-3,-19,-34,-72,-75,-68,-68,-70,-72,-79,-79,-79,-79,-92,-66,-93,0,-110,-104,-171,-160,-233,-233,-252,-252,-300,-281,-299,-243,-267,-275,-322,-304,-355,-346,-329,-333,-320,-319,-434,-417,-568,-534,-706,-657,-629,-740,-752,-750,-740,-700,-696,-698,-856,-848,-954,-918,-4898,-3816,-2064,-1959,-1774,-1621]} 1. e4 {[%emt 0:0:2]} c5 {[%emt 0:0:7]} 2. Nf3 {[%emt 0:0:6]} d6 {[%emt 0:0:46]} 3. d4 {[%emt 0:0:11]} cxd4 {[%emt 0:0:22]} 4. Nxd4 {[%emt 0:0:4]} Nf6 {[%emt 0:0:9]} 5. Nc3 {[%emt 0:0:7]} Nc6 {[%emt 0:0:52]} 6. Bg5 {[%emt 0:3:24]} Bd7 {[%emt 0:0:13]} 7. Be2 {[%emt 0:8:35]} a6 {[%emt 0:11:37] B60: Sicilian: Richter-Rauzer: Unusual Black 6th moves and 6...Bd7 without 7 Qd2.} 8. Nxc6 $146 {[%emt 0:12:8]} ({Predecessor:} 8. O-O e6 9. Nb3 Be7 10. Qd2 O-O 11. Rad1 Rc8 12. Bxf6 gxf6 13. f4 Kh8 14. Bh5 Na5 15. f5 Nc4 16. Qh6 Qb6+ {0-1 Lagno,K (2546)-Vokhidov,S (2529) Titled Tuesday intern op 15st Dec blitz 2020 (4)} )Bxc6 {[%emt 0:0:59]} 9. Bxf6 {[%emt 0:0:14]} gxf6 {[%emt 0:0:9]} 10. O-O {[%emt 0:0:43]} Bg7 {[%emt 0:10:24]} 11. Bd3 {[%emt 0:4:53]} h5 {[%emt 0:1:46]} 12. Nd5 {[%emt 0:3:32]} e6 {[%emt 0:11:7]} 13. Re1 {[%emt 0:5:1]} f5 {[%emt 0:9:10]} (13... exd5 $2 14. exd5+ Kf8 15. dxc6 bxc6 16. Qf3 $16 )14. Qf3 {[%emt 0:12:46]} Be5 {[%emt 0:1:31]} (14... exd5 $2 {is the wrong capture.} 15. exd5+ Kf8 16. dxc6 bxc6 17. c3 $18 (17. Bxf5 Bxb2 18. Rad1 Qf6 $18 ))15. Nb4 {[%emt 0:2:47]} f4 {[%emt 0:0:48]} (15... Bxb2 16. Nxc6 bxc6 17. Rab1 $16 )16. Nxc6 {[%emt 0:5:55]} bxc6 {[%emt 0:0:5]} 17. c3 {[%emt 0:1:30]} Qb6 {[%emt 0:2:15]} 18. Rab1 {[%emt 0:2:16]} Ke7 {[%emt 0:0:55]} 19. Be2 {[%emt 0:2:31]} a5 {[%emt 0:4:50]} 20. a4 {[%emt 0:4:50]} Qc5 {[%emt 0:1:58]} 21. Rec1 {[%emt 0:1:36]} Rab8 {[%emt 0:1:58]} 22. Qd3 {[%emt 0:1:8]} h4 {[%emt 0:4:9]} 23. h3 {[%emt 0:0:45]} ({Much worse is} 23. b4 Qa7 $15 )Rhg8 {[%emt 0:2:17]} 24. b4 {[%emt 0:2:6]} Qa7 {[%emt 0:0:18]} 25. b5 {[%emt 0:0:40]} cxb5 {[%emt 0:3:44]} 26. Rxb5 {[%emt 0:0:51]} Rxb5 {[%emt 0:0:5]} 27. Qxb5 {[%emt 0:0:13]} Rb8 {[%emt 0:0:42]} 28. Qd3 {[%emt 0:5:38]} Qc5 {[%emt 0:3:38]} 29. Qc4 {[%emt 0:2:23]} Qxc4 {[%emt 0:1:0]} 30. Bxc4 {[%emt 0:0:5]} Rb2 {[%emt 0:0:7]} 31. Kf1 {[%emt 0:1:57]} Kd8 {[%emt 0:3:37]} 32. Ke1 {[%emt 0:13:49]} Ke7 {[%emt 0:1:38]} (32... Bh8 $17 33. Kf1 Ke7 )33. Be2 {[%emt 0:1:22]} (33. Kf1 $1 $11 {was the only way to keep the balance.} )Ra2 $17 {[%emt 0:0:56]} 34. Bd1 {[%emt 0:1:16] [#]} (34. Bb5 $17 )Ra3 $1 $19 {[%emt 0:1:12]} 35. c4 {[%emt 0:6:23]} (35. Rb1 $17 {was called for.} )Bd4 $19 {[%emt 0:0:23]} 36. Ke2 {[%emt 0:1:10]} Kf6 {[%emt 0:1:16]} 37. Rb1 {[%emt 0:4:32]} Ra2+ {[%emt 0:0:13]} 38. Kd3 {[%emt 0:0:13]} Bc5 {[%emt 0:2:30]} 39. Bc2 {[%emt 0:0:27]} Bb4 {[%emt 0:0:36]} 40. f3 {[%emt 0:0:38]} Ke5 {[%emt 0:0:50]} 41. Rd1 {[%emt 0:17:10]} Ra3+ {[%emt 0:2:17]} 42. Ke2 {[%emt 0:0:4]} Re3+ {[%emt 0:0:42]} 43. Kf1 {[%emt 0:0:23]} Rc3 {[%emt 0:0:16]} 44. Bd3 {[%emt 0:1:45]} Ra3 {[%emt 0:1:24]} 45. Bc2 {[%emt 0:0:46]} Ra2 {[%emt 0:0:30]} 46. Bb3 {[%emt 0:1:59]} Rb2 {[%emt 0:0:7]} 47. Rd3 {[%emt 0:0:3]} Bc5 {[%emt 0:0:45]} 48. Bd1 {[%emt 0:2:26]} Rf2+ {[%emt 0:0:6]} 49. Ke1 {[%emt 0:0:9]} Rxg2 {[%emt 0:0:5]} 50. Be2 {[%emt 0:0:11]} Rh2 {[%emt 0:0:12]} 51. Bf1 {[%emt 0:3:45]} Ra2 {[%emt 0:0:20]} 52. Be2 {[%emt 0:0:46]} Rxa4 {[%emt 0:0:40]} 53. Rd1 {[%emt 0:0:11]} Ra2 {[%emt 0:0:24]} 54. Rb1 {[%emt 0:1:18]} a4 {[%emt 0:0:47]} 55. Bd1 {[%emt 0:0:19]} Rh2 {[%emt 0:1:27]} 0-1